fUST/lending_fUST_20250425
["ID","MTS","AMOUNT","RATE_DAILY","PERIOD"]
[358939214,1745566246780,-410.07149621,0.00016164,2]
[358939215,1745566246789,-317.96099324,0.00016421,2]
[358939216,1745566246799,-7646.80894051,0.00016435,2]
[358939217,1745566246811,-5369.01499441,0.00016435,2]
[358939224,1745566694214,588.26,0.00025,30]
[358939225,1745566747459,-3367.42883404,0.0002,10]
[358939226,1745566747527,-1000.0,0.00024,24]
[358939227,1745566747559,-200.0,0.00024658,15]
[358939228,1745566747589,-1000.0,0.00024658,14]
[358939229,1745566747619,-1000.0,0.00024658,14]
[358939230,1745566747649,-1000.0,0.00024658,14]
[358939231,1745566747679,-1000.0,0.00024658,14]
[358939232,1745566747709,-1000.0,0.00024658,14]
[358939233,1745566747739,-1000.0,0.00024658,14]
[358939234,1745566747769,-1000.0,0.00024658,14]
[358939235,1745566747799,-1000.0,0.00024658,14]
[358939236,1745566747829,-1000.0,0.00024658,14]
[358939237,1745566747860,-1000.0,0.00024658,14]
[358939238,1745566747891,-1000.0,0.00024658,14]
[358939239,1745566747921,-1000.0,0.00024658,14]
[358939240,1745566747951,-1000.0,0.00024658,14]
[358939241,1745566747983,-1000.0,0.00024658,14]
[358939242,1745566748012,-1000.0,0.00024658,14]
[358939243,1745566748042,-1000.0,0.00024658,14]
[358939244,1745566748072,-1000.0,0.00024658,14]
[358939245,1745566748103,-1000.0,0.00024658,14]
[358939246,1745566748134,-1000.0,0.00024658,14]
[358939247,1745566748165,-1000.0,0.00024658,14]
[358939248,1745566748196,-1000.0,0.00024658,14]
[358939249,1745566748226,-1000.0,0.00024658,14]
[358939250,1745566748256,-1000.0,0.00024658,14]
[358939251,1745566748286,-1000.0,0.00024658,14]
[358939252,1745566748318,-1000.0,0.00024658,14]
[358939253,1745566748350,-1000.0,0.00024658,14]
[358939254,1745566748381,-1000.0,0.00024658,14]
[358939255,1745566748413,-1000.0,0.00024658,14]
[358939256,1745566748444,-1000.0,0.00024658,14]
[358939257,1745566748622,-1000.0,0.00024658,14]
[358939258,1745566748654,-1000.0,0.00024658,14]
[358939259,1745566748685,-1000.0,0.00024658,14]
[358939260,1745566748718,-1000.0,0.00024658,14]
[358939261,1745566748748,-1000.0,0.00024658,14]
[358939262,1745566748780,-1000.0,0.00024658,14]
[358939263,1745566748811,-1000.0,0.00024658,14]
[358939264,1745566748842,-1000.0,0.00024658,14]
[358939265,1745566748873,-1000.0,0.00024658,14]
[358939266,1745566748904,-1000.0,0.00024658,14]
[358939267,1745566748936,-1000.0,0.00024658,14]
[358939268,1745566748966,-1000.0,0.00024658,14]
[358939269,1745566748997,-1000.0,0.00024658,14]
[358939270,1745566749028,-1000.0,0.00024658,14]
[358939271,1745566749059,-1000.0,0.00024658,14]
[358939272,1745566749093,-1000.0,0.00024658,14]
[358939273,1745566749124,-1000.0,0.00024658,14]
[358939274,1745566749154,-1000.0,0.00024658,14]
[358939275,1745566749186,-1000.0,0.00024658,14]
[358939276,1745566749216,-1000.0,0.00024658,14]
[358939277,1745566749247,-1000.0,0.00024658,14]
[358939278,1745566749278,-1000.0,0.00024658,14]
[358939279,1745566749311,-1000.0,0.00024658,14]
[358939280,1745566749344,-1000.0,0.00024658,14]
[358939281,1745566749374,-1000.0,0.00024658,14]
[358939282,1745566749405,-1000.0,0.00024658,14]
[358939283,1745566749436,-1000.0,0.00024658,14]
[358939284,1745566749467,-1000.0,0.00024658,14]
[358939285,1745566749499,-1000.0,0.00024658,14]
[358939286,1745566749531,-1000.0,0.00024658,14]
[358939287,1745566749563,-1000.0,0.00024658,14]
[358939288,1745566749596,-1000.0,0.00024658,14]
[358939289,1745566749628,-1000.0,0.00024658,14]
[358939290,1745566749662,-1000.0,0.00024658,14]
[358939291,1745566749693,-1000.0,0.00024658,14]
[358939292,1745566749725,-1000.0,0.00024658,14]
[358939293,1745566749757,-1000.0,0.00024658,14]
[358939294,1745566749790,-1000.0,0.00024658,14]
[358939295,1745566749821,-1000.0,0.00024658,14]
[358939296,1745566749853,-1000.0,0.00024658,14]
[358939297,1745566749884,-1000.0,0.00024658,14]
[358939298,1745566749915,-1000.0,0.00024658,14]
[358939299,1745566749946,-1000.0,0.00024658,14]
[358939300,1745566749977,-1000.0,0.00024658,14]
[358939301,1745566750008,-746.585171,0.00024658,14]
[358939302,1745566750041,-200.0,0.00025,17]
[358939303,1745566750072,-200.0,0.00025,17]
[358939304,1745566750215,-200.0,0.00025,17]
[358939305,1745566750248,-320.19094,0.00025,23]
[358939306,1745566750279,-1000.0,0.00025014,30]
[358939307,1745566750314,-1000.0,0.00025014,30]
[358939308,1745566750346,-1000.0,0.00025014,30]
[358939309,1745566750378,-1000.0,0.00025014,30]
[358939310,1745566750410,-1000.0,0.00025014,30]
[358939311,1745566750441,-1000.0,0.00025014,30]
[358939312,1745566750474,-1000.0,0.00025014,30]
[358939313,1745566750507,-1000.0,0.00025014,30]
[358939314,1745566750538,-1000.0,0.00025014,30]
[358939315,1745566750569,-1000.0,0.00025014,30]
[358939316,1745566750603,-1000.0,0.00026,26]
[358939317,1745566750633,-38445.98553831,0.00026,10]
[358939318,1745566750668,-200.0,0.00026,20]
[358939319,1745566750702,-200.0,0.00026,20]
[358939320,1745566750734,-200.0,0.00026,20]
[358939321,1745566750764,-160.0,0.00026,10]
[358939322,1745566750795,-160.0,0.00026,10]
[358939323,1745566750825,-160.0,0.00026,30]
[358939324,1745566750856,-313.10658385,0.00026,10]
[358939325,1745566750885,-313.10658385,0.00026,30]
[358939326,1745566757489,-216.0,0.00017,7]
[358939327,1745566757570,-1568.45260702,0.0002,8]
[358939328,1745566757655,-1302.6585433,0.00021918,7]
[358939329,1745566757687,-47957.63800295,0.00022,7]
[358939330,1745566757719,-160.0,0.00022,7]
[358939331,1745566757765,-160.0,0.00024,7]
[358939332,1745566757796,-160.0,0.00024,7]
[358939333,1745566757830,-151.0,0.00024658,7]
[358939334,1745566757860,-151.0,0.00024658,7]
[358939335,1745566757890,-151.0,0.00024658,7]
[358939336,1745566757921,-151.0,0.00024658,7]
[358939337,1745566757951,-151.0,0.00024658,7]
[358939338,1745566757980,-151.0,0.00024658,7]
[358939339,1745566758010,-157.996265,0.00024658,7]
[358939340,1745566758041,-11797.72509559,0.00025,7]
[358939341,1745566758070,-500.0,0.00025,7]
[358939342,1745566758104,-200.0,0.00025107,7]
[358939343,1745566802893,-385.570183,0.00015271,2]
[358939344,1745566802926,-300.0,0.00015317,2]
[358939345,1745566802956,-300.0,0.00015317,2]
[358939346,1745566802987,-436.81127648,0.00015318,2]
[358939347,1745566803019,-500.0,0.00015318,2]
[358939348,1745566803055,-173.11574617,0.00015318,2]
[358939349,1745566803086,-156.12049037,0.00015318,2]
[358939350,1745566803120,-500.0,0.00015318,2]
[358939351,1745566803154,-579.46987336,0.00015318,2]
[358939352,1745566803192,-500.0,0.00015318,2]
[358939353,1745566803226,-339.52903144,0.00015318,2]
[358939354,1745566803258,-500.0,0.00015318,2]
[358939355,1745566803292,-500.0,0.00015318,2]
[358939356,1745566803328,-500.0,0.00015318,2]
[358939357,1745566803362,-329.38339918,0.00015318,2]
[358939358,1745567144118,-300.0,0.00015314,2]
[358939359,1745567144140,-279.0,0.00015314,2]
[358939360,1745567144161,-305.76789354,0.00015315,2]
[358939361,1745567144182,-471.18102232,0.00015315,2]
[358939362,1745567144205,-500.0,0.00015315,2]
[358939363,1745567144224,-418.03311107,0.00015315,2]
[358939364,1745567144245,-224.62859638,0.00015315,2]
[358939365,1745567144277,-500.0,0.00015315,2]
[358939366,1745567144299,-500.0,0.00015315,2]
[358939367,1745567144321,-500.0,0.00015315,2]
[358939368,1745567144353,-500.0,0.00015315,2]
[358939369,1745567144376,-211.10215268,0.00015315,2]
[358939370,1745567144398,-500.0,0.00015315,2]
[358939371,1745567144429,-500.0,0.00015315,2]
[358939372,1745567144455,-500.0,0.00015315,2]
[358939373,1745567144487,-500.0,0.00015315,2]
[358939374,1745567144510,-500.0,0.00015315,2]
[358939375,1745567144540,-500.0,0.00015315,2]
[358939376,1745567144562,-500.0,0.00015315,2]
[358939377,1745567144583,-500.0,0.00015315,2]
[358939378,1745567144614,-500.0,0.00015315,2]
[358939379,1745567144636,-500.0,0.00015315,2]
[358939380,1745567144666,-500.0,0.00015315,2]
[358939381,1745567144701,-420.49315729,0.00015315,2]
[358939382,1745567230062,-482.89352635,0.00015314,2]
[358939383,1745567353109,-3107.6682,0.00015231,2]
[358939384,1745567374090,-4240.5162587,0.00015231,2]
[358939385,1745567374111,-329.82671563,0.00015313,2]
[358939386,1745567374131,-214.03752548,0.00015313,2]
[358939387,1745567374154,-175.62466666,0.00015313,2]
[358939388,1745567374182,-500.0,0.00015313,2]
[358939389,1745567374208,-500.0,0.00015313,2]
[358939390,1745567374235,-500.0,0.00015313,2]
[358939391,1745567374447,-500.0,0.00015313,2]
[358939392,1745567374479,-500.0,0.00015313,2]
[358939393,1745567374506,-500.0,0.00015313,2]
[358939394,1745567374531,-500.0,0.00015313,2]
[358939395,1745567374556,-500.0,0.00015313,2]
[358939396,1745567374583,-500.0,0.00015313,2]
[358939397,1745567374610,-500.0,0.00015313,2]
[358939398,1745567374640,-500.0,0.00015313,2]
[358939399,1745567374668,-500.0,0.00015313,2]
[358939400,1745567374697,-500.0,0.00015313,2]
[358939401,1745567374724,-500.0,0.00015313,2]
[358939402,1745567374751,-500.0,0.00015313,2]
[358939403,1745567374776,-500.0,0.00015313,2]
[358939404,1745567374803,-635.59491705,0.00015313,2]
[358939405,1745567374830,-500.0,0.00015313,2]
[358939406,1745567374858,-500.0,0.00015313,2]
[358939407,1745567374884,-500.0,0.00015313,2]
[358939408,1745567374912,-500.0,0.00015313,2]
[358939409,1745567374940,-500.0,0.00015313,2]
[358939410,1745567374968,-500.0,0.00015313,2]
[358939411,1745567374997,-500.0,0.00015313,2]
[358939412,1745567375025,-500.0,0.00015313,2]
[358939413,1745567375056,-500.0,0.00015313,2]
[358939414,1745567375085,-500.0,0.00015313,2]
[358939415,1745567375116,-500.0,0.00015313,2]
[358939416,1745567375144,-500.0,0.00015313,2]
[358939417,1745567375169,-500.0,0.00015313,2]
[358939418,1745567375197,-500.0,0.00015313,2]
[358939419,1745567375227,-500.0,0.00015313,2]
[358939420,1745567375255,-500.0,0.00015313,2]
[358939421,1745567375281,-500.0,0.00015313,2]
[358939422,1745567375302,-6480.62171648,0.0001532,2]
[358939467,1745567438696,-500.0,0.00015319,2]
[358939468,1745567438707,-500.0,0.00015319,2]
[358939469,1745567438723,-181.13399259,0.00015319,2]
[358939470,1745567438735,-318.86600741,0.00015319,2]
[358939471,1745567438745,-500.0,0.00015319,2]
[358939472,1745567438754,-163.55949171,0.00015319,2]
[358939473,1745567438764,-468.73262692,0.0001532,2]
[358939474,1745567438774,-160.0,0.00015543,2]
[358939475,1745567438783,-317.96099324,0.00015959,2]
[358939476,1745567438793,-894.00604482,0.00016245,2]
[358939477,1745567438803,-196.96702943,0.00016273,2]
[358939478,1745567438813,-207.4,0.00016328,2]
[358939479,1745567438823,-300.0,0.00016334,2]
[358939480,1745567438832,-230.87870094,0.00016334,2]
[358939481,1745567438842,-287.05004735,0.00016334,2]
[358939482,1745567438852,-6305.3460973,0.00016335,2]
[358939483,1745567440696,-1939.32078207,0.00016335,2]
[358939484,1745567440740,-8126.51857095,0.00016335,2]
[358939505,1745567443297,-3628.81454968,0.00016335,2]
[358939506,1745567443306,-7219.85551124,0.00016338,2]
[358939507,1745567443318,-536.92244762,0.00016338,2]
[358939508,1745567443394,-92416.49398509,0.00016338,2]
[358939509,1745567443406,-2258.73431569,0.00016338,2]
[358939510,1745567443442,-541.65,0.00016338,2]
[358939511,1745567443453,-5502.4136246,0.00016338,2]
[358939529,1745567446316,-8927.71020951,0.00016338,2]
[358939530,1745567446367,-9382.92911508,0.00016338,2]
[358939534,1745567850689,285.67536283,0.00015,2]
[358939543,1745568434379,-300.0,0.0001506,2]
[358939544,1745568434407,-500.0,0.0001506,2]
[358939545,1745568434444,-500.0,0.0001506,2]
[358939546,1745568434471,-500.0,0.0001506,2]
[358939547,1745568434508,-500.0,0.0001506,2]
[358939548,1745568434535,-318.15359434,0.0001506,2]
[358939549,1745568434571,-500.0,0.0001506,2]
[358939550,1745568434607,-500.0,0.0001506,2]
[358939551,1745568434643,-500.0,0.0001506,2]
[358939552,1745568434679,-500.0,0.0001506,2]
[358939553,1745568434714,-500.0,0.0001506,2]
[358939554,1745568434748,-500.0,0.0001506,2]
[358939555,1745568434783,-94.78196836,0.0001506,2]
[358939559,1745568561094,-356.2800891,0.00015059,2]
[358939560,1745568570084,-143.7199109,0.00015059,2]
[358939561,1745568570117,-500.0,0.00015059,2]
[358939562,1745568570151,-500.0,0.00015059,2]
[358939563,1745568570182,-500.0,0.00015059,2]
[358939564,1745568570214,-500.0,0.00015059,2]
[358939565,1745568570248,-500.0,0.00015059,2]
[358939566,1745568570280,-500.0,0.00015059,2]
[358939567,1745568570312,-500.0,0.00015059,2]
[358939568,1745568570343,-500.0,0.00015059,2]
[358939569,1745568570374,-500.0,0.00015059,2]
[358939570,1745568570406,-500.0,0.00015059,2]
[358939571,1745568570437,-500.0,0.00015059,2]
[358939572,1745568570467,-500.0,0.00015059,2]
[358939573,1745568570500,-635.18038332,0.00015059,2]
[358939574,1745568570530,-500.0,0.00015059,2]
[358939575,1745568570562,-500.0,0.00015059,2]
[358939576,1745568570776,-500.0,0.00015059,2]
[358939577,1745568570809,-500.0,0.00015059,2]
[358939578,1745568570839,-500.0,0.00015059,2]
[358939579,1745568570871,-500.0,0.00015059,2]
[358939580,1745568570902,-500.0,0.00015059,2]
[358939581,1745568570931,-300.0,0.00015059,2]
[358939582,1745568570956,-568.3643501,0.00015062,2]
[358939583,1745568570980,-449.76421894,0.00015062,2]
[358939584,1745568571002,-2024.3922455,0.00015137,2]
[358939585,1745568571023,-201.66561574,0.0001531,2]
[358939586,1745568571044,-407.72986948,0.0001531,2]
[358939587,1745568571064,-300.0,0.00015311,2]
[358939588,1745568571086,-900.0,0.00015311,2]
[358939589,1745568571110,-9797.28140972,0.00015311,2]
[358939643,1745568632619,-347.4812932,0.00015402,2]
[358939644,1745568632629,-317.96099324,0.0001606,2]
[358939645,1745568632639,-782.2552892,0.00016135,2]
[358939646,1745568632648,-259.4289088,0.00016173,2]
[358939647,1745568632658,-207.4,0.00016228,2]
[358939648,1745568632667,-219.76135987,0.00016233,2]
[358939649,1745568632676,-300.0,0.00016234,2]
[358939650,1745568632686,-30000.0,0.00016235,2]
[358939651,1745568632696,-372.18170139,0.00016235,2]
[358939652,1745568632705,-31844.77222519,0.00016238,2]
[358939653,1745568632729,-270.01169754,0.00016238,2]
[358939665,1745568639190,-200.93503315,0.00016234,2]
[358939666,1745568639200,-7444.09804067,0.00016238,2]
[358939667,1745568639213,-154976.09907746,0.00016238,2]
[358939668,1745568639224,-1475.53809944,0.00016238,2]
[358939669,1745568639445,-285.41090864,0.00016234,2]
[358939670,1745568639455,-103745.95410798,0.00016238,2]
[358939671,1745568639675,-259.42890878,0.00016271,2]
[358939672,1745568639686,-500.0,0.00016273,2]
[358939673,1745568639696,-492.35878879,0.00016273,2]
[358939674,1745568639706,-237.25972672,0.00016273,2]
[358939675,1745568639715,-505.9426864,0.00016273,2]
[358939676,1745568639725,-500.0,0.00016273,2]
[358939677,1745568639734,-500.0,0.00016273,2]
[358939678,1745568639744,-500.0,0.00016273,2]
[358939679,1745568639753,-500.0,0.00016273,2]
[358939680,1745568639762,-500.0,0.00016273,2]
[358939681,1745568639772,-500.0,0.00016273,2]
[358939682,1745568639782,-152.0,0.00016315,2]
[358939683,1745568639791,-319.0,0.00016338,2]
[358939684,1745568639801,-319.0,0.00016338,2]
[358939685,1745568639811,-319.27300255,0.00016338,2]
[358939686,1745568639820,-319.0,0.00016338,2]
[358939687,1745568639830,-319.0,0.00016338,2]
[358939688,1745568639839,-166.0,0.00016338,2]
[358939689,1745568639848,-166.0,0.00016338,2]
[358939690,1745568639859,-166.0,0.00016338,2]
[358939691,1745568639870,-166.0,0.00016338,2]
[358939692,1745568639879,-259.42890878,0.00016368,2]
[358939693,1745568639888,-2802.8,0.00016368,2]
[358939694,1745568639897,-2802.8,0.00016368,2]
[358939695,1745568639907,-2802.8,0.00016368,2]
[358939696,1745568639916,-2802.8,0.00016368,2]
[358939697,1745568639925,-2802.8,0.00016368,2]
[358939698,1745568639934,-2802.8,0.00016368,2]
[358939699,1745568639944,-2802.8,0.00016368,2]
[358939700,1745568639953,-2802.8,0.00016368,2]
[358939701,1745568639963,-2802.8,0.00016368,2]
[358939702,1745568639972,-2802.8,0.00016368,2]
[358939703,1745568639982,-2802.8,0.00016368,2]
[358939705,1745568639991,-367.4193755,0.000164,2]
[358939706,1745568640002,-16984.17606508,0.00016435,2]
[358939707,1745568640011,-500.0,0.00016438,2]
[358939708,1745568640021,-500.0,0.00016438,2]
[358939709,1745568640031,-500.0,0.00016438,2]
[358939710,1745568640041,-871.82,0.00016438,2]
[358939711,1745568640050,-500.0,0.00016438,2]
[358939712,1745568640059,-502.53675862,0.00016438,2]
[358939713,1745568640069,-500.0,0.00016438,2]
[358939714,1745568640078,-502.5665096,0.00016438,2]
[358939715,1745568640088,-500.0,0.00016438,2]
[358939716,1745568640097,-512.17917541,0.00016438,2]
[358939717,1745568640107,-510.12948291,0.00016438,2]
[358939718,1745568640117,-500.0,0.00016438,2]
[358939719,1745568640127,-500.0,0.00016438,2]
[358939720,1745568640138,-504.13667085,0.00016438,2]
[358939721,1745568640148,-500.0,0.00016438,2]
[358939722,1745568640158,-832.16,0.00016438,2]
[358939723,1745568640167,-500.0,0.00016438,2]
[358939724,1745568640178,-511.49450092,0.00016438,2]
[358939725,1745568640187,-500.0,0.00016438,2]
[358939726,1745568640197,-505.07482727,0.00016438,2]
[358939727,1745568640208,-500.0,0.00016438,2]
[358939728,1745568640218,-500.0,0.00016438,2]
[358939729,1745568640228,-500.0,0.00016438,2]
[358939730,1745568640238,-500.0,0.00016438,2]
[358939732,1745568640247,-500.0,0.00016438,2]
[358939734,1745568640256,-500.0,0.00016438,2]
[358939736,1745568640266,-500.0,0.00016438,2]
[358939738,1745568640275,-500.0,0.00016438,2]
[358939740,1745568640284,-500.0,0.00016438,2]
[358939742,1745568640295,-500.0,0.00016438,2]
[358939744,1745568640304,-500.0,0.00016438,2]
[358939746,1745568640314,-500.0,0.00016438,2]
[358939748,1745568640324,-500.0,0.00016438,2]
[358939750,1745568640333,-500.0,0.00016438,2]
[358939752,1745568640342,-500.0,0.00016438,2]
[358939754,1745568640352,-500.0,0.00016438,2]
[358939756,1745568640361,-500.0,0.00016438,2]
[358939757,1745568640371,-500.0,0.00016438,2]
[358939758,1745568640380,-500.0,0.00016438,2]
[358939759,1745568640389,-500.0,0.00016438,2]
[358939760,1745568640398,-500.0,0.00016438,2]
[358939761,1745568640407,-500.0,0.00016438,2]
[358939762,1745568640417,-500.0,0.00016438,2]
[358939763,1745568640426,-500.0,0.00016438,2]
[358939764,1745568640435,-500.0,0.00016438,2]
[358939765,1745568640445,-500.0,0.00016438,2]
[358939766,1745568640455,-500.0,0.00016438,2]
[358939767,1745568640464,-500.0,0.00016438,2]
[358939768,1745568640474,-500.0,0.00016438,2]
[358939769,1745568640484,-500.0,0.00016438,2]
[358939771,1745568640494,-500.0,0.00016438,2]
[358939772,1745568640504,-500.0,0.00016438,2]
[358939773,1745568640513,-636.79921551,0.00016438,2]
[358939774,1745568640523,-500.0,0.00016438,2]
[358939775,1745568640532,-500.0,0.00016438,2]
[358939776,1745568640542,-152.60037537,0.00016438,2]
[358939778,1745568641087,-3641.70649603,0.00016138,2]
[358939779,1745568641099,-479.93791128,0.00016138,2]
[358939793,1745568643648,-43731.94094863,0.00016138,2]
[358939804,1745568646687,-892.35000002,0.00016138,2]
[358939805,1745568646701,-3084.7776786,0.00016138,2]
[358939806,1745568646907,-5304.57099011,0.00016138,2]
[358939808,1745568646920,-937.53742386,0.00016138,2]
[358939818,1745569659304,500.0,0.00025,30]
[358939819,1745569668775,8643.9799001,0.00014865,2]
[358939828,1745569766122,-250.0,0.0001505,2]
[358939829,1745569766152,-500.0,0.00015069,2]
[358939830,1745569766180,-500.0,0.00015069,2]
[358939831,1745569766207,-500.0,0.00015069,2]
[358939832,1745569766235,-500.0,0.00015069,2]
[358939833,1745569766257,-421.71724281,0.00015069,2]
[358939834,1745569766284,-500.0,0.00015069,2]
[358939835,1745569766309,-500.0,0.00015069,2]
[358939836,1745569766335,-500.0,0.00015069,2]
[358939837,1745569766359,-500.0,0.00015069,2]
[358939838,1745569766383,-500.0,0.00015069,2]
[358939839,1745569766407,-500.0,0.00015069,2]
[358939840,1745569766432,-500.0,0.00015069,2]
[358939841,1745569766457,-500.0,0.00015069,2]
[358939842,1745569766484,-246.21757834,0.00015069,2]
[358939843,1745569766509,-500.0,0.00015069,2]
[358939844,1745569766533,-500.0,0.00015069,2]
[358939845,1745569766552,-283.60342836,0.0001507,2]
[358939846,1745569766572,-500.0,0.0001507,2]
[358939848,1745569766593,-363.15205413,0.0001507,2]
[358939849,1745569766612,-12122.55232437,0.0001507,2]
[358939850,1745569766631,-1417.30799395,0.00015071,2]
[358939853,1745569824564,500.0,0.00025,30]
[358939892,1745569838605,-328.74822045,0.00015071,2]
[358939893,1745569838615,-6021.62485308,0.000153,2]
[358939894,1745569838623,-206.8957478,0.00015439,2]
[358939895,1745569838632,-500.0,0.00015963,2]
[358939896,1745569838642,-500.0,0.00015963,2]
[358939897,1745569838651,-684.47337805,0.00015964,2]
[358939898,1745569838660,-300.0,0.00015999,2]
[358939899,1745569838669,-300.0,0.00015999,2]
[358939900,1745569838679,-1200.0,0.00015999,2]
[358939901,1745569838688,-196.0,0.00015999,2]
[358939902,1745569838697,-198.52239985,0.00015999,2]
[358939903,1745569838706,-604.2064379,0.00015999,2]
[358939904,1745569838717,-880.0,0.00016,2]
[358939905,1745569838726,-3325.0,0.00016,2]
[358939906,1745569838736,-22764.6227436,0.00016,2]
[358939908,1745569838748,-1705.04698977,0.00016,2]
[358939909,1745569838763,-737.5,0.00016,2]
[358939917,1745569841205,-7151.27884523,0.00016,2]
[358939918,1745569841216,-678.67393402,0.00016,2]
[358939930,1745569843785,-1725.09195737,0.00016,2]
[358939934,1745569846691,-775.16357609,0.00016,2]
[358939935,1745569846704,-9403.83361852,0.00016,2]
[358939936,1745569846717,-4449.80108327,0.00016,2]
[358939938,1745569851702,500.0,0.00025,30]
[358939939,1745569860985,1206.0,0.00025,30]
[358939942,1745570242195,-1013.0323373,0.00015053,2]
[358939943,1745570242217,-300.0,0.00015961,2]
[358939944,1745570242240,-900.0,0.00015961,2]
[358939945,1745570242263,-300.0,0.00015961,2]
[358939946,1745570242288,-25164.06327125,0.00015962,2]
[358939947,1745570242314,-500.0,0.00015962,2]
[358939948,1745570242337,-272.64695517,0.00015962,2]
[358939949,1745570242367,-500.0,0.00015962,2]
[358939950,1745570242390,-500.0,0.00015962,2]
[358939951,1745570242414,-500.0,0.00015962,2]
[358939952,1745570242444,-500.0,0.00015962,2]
[358939953,1745570242473,-500.0,0.00015962,2]
[358939954,1745570242496,-500.0,0.00015962,2]
[358939955,1745570242525,-500.0,0.00015962,2]
[358939956,1745570242549,-500.0,0.00015962,2]
[358939957,1745570242579,-500.0,0.00015962,2]
[358939958,1745570242609,-500.0,0.00015962,2]
[358939959,1745570242632,-500.0,0.00015962,2]
[358939960,1745570242656,-159.79252416,0.00015962,2]
[358939961,1745570242686,-500.0,0.00015962,2]
[358939962,1745570242709,-500.0,0.00015962,2]
[358939963,1745570242739,-203.1331931,0.00015962,2]
[358939964,1745570242768,-500.0,0.00015962,2]
[358939965,1745570242798,-500.0,0.00015962,2]
[358939966,1745570242827,-500.0,0.00015962,2]
[358939967,1745570242855,-500.0,0.00015962,2]
[358939968,1745570242884,-500.0,0.00015962,2]
[358939969,1745570242913,-500.0,0.00015962,2]
[358939970,1745570242943,-500.0,0.00015962,2]
[358939971,1745570242972,-500.0,0.00015962,2]
[358939972,1745570242998,-500.0,0.00015962,2]
[358939973,1745570243028,-644.79257701,0.00015962,2]
[358939974,1745570243052,-500.0,0.00015962,2]
[358939975,1745570243075,-406.64361378,0.00015962,2]
[358939976,1745570243099,-500.0,0.00015962,2]
[358939977,1745570243123,-500.0,0.00015962,2]
[358939978,1745570243145,-3164.92340983,0.00016,2]
[358939979,1745570243168,-500.0,0.00016037,2]
[358939980,1745570243194,-386.91674167,0.00016037,2]
[358939981,1745570251496,-243507.19432547,0.00016038,2]
[358939982,1745570260478,-255.53256905,0.00016064,2]
[358939983,1745570260501,-500.0,0.00016073,2]
[358939984,1745570260523,-500.0,0.00016073,2]
[358939985,1745570260545,-500.0,0.00016073,2]
[358939986,1745570260570,-500.0,0.00016073,2]
[358939987,1745570260592,-500.0,0.00016073,2]
[358939988,1745570260613,-187.15276944,0.00016164,2]
[358939989,1745570260635,-255.53256901,0.00016189,2]
[358939990,1745570260656,-255.53256901,0.00016314,2]
[358939991,1745570260677,-270.06547272,0.00016422,2]
[358939992,1745570260699,-207.4,0.00016428,2]
[358939993,1745570260721,-20000.0,0.00016435,2]
[358939994,1745570260742,-157.640689,0.00016438,2]
[358939995,1745570260763,-151.0,0.00016438,2]
[358939996,1745570260785,-151.0,0.00016438,2]
[358939997,1745570260807,-151.0,0.00016438,2]
[358939998,1745570260829,-151.0,0.00016438,2]
[358939999,1745570260854,-151.0,0.00016438,2]
[358940000,1745570260876,-151.0,0.00016438,2]
[358940001,1745570260900,-151.0,0.00016438,2]